Cogmind - Beta 9.6 @@@ ROGUE MODE // 2020.07.28 @ 22:44:43 Player: zeramoth Result: Destroyed by G-47 Trooper with Particle Gun Performance ------------- Evolutions (0) 0 Regions Visited (2) 400 Robots Destroyed (22) 110 Value Destroyed (596) 596 Prototype IDs (0) 0 Alien Tech Used (0) 0 Bonus (0) 0 TOTAL SCORE: 1106 Bonus ------- None Cogmind --------- Core Integrity 0/250 Matter 299/300 Energy 160/160 System Corruption 4% Temperature Cool (21) Movement Rolling (90) Location -10/Mines Parts ------- > --- POWER (1) -------- Light Nuclear Core > --- PROPULSION (2) --- Wheel Compact Wheel > --- UTILITY (2) ------ Small Storage Unit > --- WEAPON (2) ------- Small Laser Light Assault Rifle > --- INVENTORY (6) ---- Light Ion Engine Light Ion Engine Compact Wheel Sensor Array Peak State ------------ > --- POWER ------------ Light Nuclear Core > --- PROPULSION ------- Compact Wheel Compact Wheel > --- UTILITY ---------- Heat Sink Small Storage Unit > --- WEAPON ----------- Particle Gun Light Assault Rifle > --- INVENTORY -------- Light Ion Engine Compact Wheel Compact Wheel Compact Wheel Sensor Array [Rating: 10] Favorites ----------- Power Light Nuclear Core Engine Ion Engine Power Core Light Nuclear Core Propulsion Compact Wheel Leg Aluminum Leg Wheel Compact Wheel Utility Small Storage Unit Device Heat Sink Storage Small Storage Unit Hackware Hacking Suite Weapon Light Assault Rifle Energy Gun Particle Gun Ballistic Gun Light Assault Rifle Special Melee Weapon Datajack Build | -11 -10 -10 ------- Run | Scr Mat Min Slots Evolved . | . . . Power . | . . . Propulsion . | . . . Utility . | . . . Weapon . | . . . Parts Attached 20 | . 6 14 Power 4 | . . 4 Engine 2 | . . 2 Core 2 | . . 2 Reactor . | . . . Propulsion 6 | . 3 3 Treads . | . . . Leg . | . . . Wheel 6 | . 3 3 Hover . | . . . Flight . | . . . Utility 2 | . 1 1 Device 1 | . . 1 Storage . | . . . Processor . | . . . Hackware 1 | . 1 . Protection . | . . . Artifact . | . . . Weapon 8 | . 2 6 Energy Gun 4 | . 1 3 Energy Cannon . | . . . Ballistic Gun 3 | . . 3 Ballistic Cannon . | . . . Launcher . | . . . Special Weapon . | . . . Impact Weapon . | . . . Slashing Weapon . | . . . Piercing Weapon . | . . . Special Melee Weapon 1 | . 1 . Unidentified Prototypes . | . . . Parts Lost 11 | . 1 10 Power 2 | . . 2 Propulsion 3 | . . 3 Utility 2 | . 1 1 Weapon 4 | . . 4 Highest Loss Streak 5 | . 1 5 Average Slot Usage (%) 79 | . 94 73 Engine 5 | . 14 2 Core 8 | . . 11 Leg 4 | . 15 . Wheel 15 | . 12 16 Storage 14 | . 14 14 Hackware 2 | . 9 . Energy Gun 13 | . 11 14 Ballistic Gun 13 | . 14 13 Naked Turns . | . . . Heaviest Build 14 | 12 12 14 Greatest Support 32 | 20 32 32 Greatest Overweight (x) . | . . . Average Overweight (x) . | . . . Largest Inventory Capacity 6 | 6 6 6 Average Capacity 6 | 6 6 6 Most Carried 6 | 6 6 6 Average Carried 5 | 6 5 5 Final Capacity 6 | 6 6 6 Final Carried 6 | 6 6 4 Class Distribution -------------------- 94% | Mutant 5% | Scavenger-Mutant Dominant Class ---------------- Mutant | -10/Materials Mutant | -10/Mines Resources | -11 -10 -10 ----------- Run | Scr Mat Min Matter Collected 436 | 200 81 155 Remotely . | . . . Salvage Created 730 | . 250 480 Parts 51 | . 19 32 Haulers Intercepted . | . . . Recyclers Shooed . | . . . Parts Field Recycled . | . . . Retrieved Matter . | . . . Parts Self-Destructed . | . . . Prevented . | . . . Kills | -11 -10 -10 ------- Run | Scr Mat Min Combat Hostiles Destroyed 19 | . 5 14 Guns 17 | . 5 12 AOE 2 | . . 2 Classes Destroyed 5 | . 2 3 Tunneler 2 | . . 2 Operator 1 | . 1 . Swarmer 3 | . . 3 Grunt 15 | . 5 10 Assembled 1 | . . 1 Best Kill Streak 3 | . 3 3 Combat Bots Only 3 | . 3 3 Max Kills in Single Turn 3 | . 1 3 Gunslinging . | . . . Exploded 2 | . . 2 Melee . | . . . Uniques/NPCs Destroyed . | . . . Combat | -11 -10 -10 -------- Run | Scr Mat Min Damage Taken 1058 | . 320 738 Core 255 | . 69 186 Absorbed by Shields . | . . . Core Remaining (%) 100 | 100 . . Volleys Fired 88 | . 28 60 Largest 2 | . 2 2 Hottest 105 | . 60 105 Shots Fired 158 | . 56 102 Gun 158 | . 56 102 Cannon . | . . . Launcher . | . . . Special . | . . . Kinetic 74 | . 28 46 Thermal 47 | . . 47 Explosive . | . . . Electromagnetic 37 | . 28 9 Robot Hit Streak 13 | . 13 7 Robot Miss Streak 4 | . 2 4 Penetration Max . | . . . Secondary Targets 4 | . 1 3 Max Gunslinging Chain 1 | . 1 1 Shots Hit Robots 93 | . 43 50 Core Hits 43 | . 12 31 Critical Hits . | . . . Critical Kills . | . . . Critical Parts Destroyed . | . . . Melee Attacks 1 | . 1 . Impact . | . . . Slashing . | . . . Piercing . | . . . Sneak Attacks 1 | . 1 . Combat Hostiles 1 | . 1 . Follow-up Attacks . | . . . Damage Inflicted 1120 | . 429 691 Guns 1047 | . 429 618 Cannons . | . . . Explosions 73 | . . 73 Melee . | . . . Ramming . | . . . Kinetic 402 | . 184 218 Thermal 400 | . . 400 Explosive . | . . . Electromagnetic 318 | . 245 73 Impact . | . . . Slashing . | . . . Piercing . | . . . Highest Corruption 4 | . 1 4 Average Corruption 1 | . 1 1 Corruption Purged . | . . . Effects 11 | . 3 8 Message Errors 6 | . 1 5 Data Loss (minor) 2 | . 1 1 Targeting Errors 2 | . 1 1 Weapon Failures 1 | . . 1 Overload Shots . | . . . Overflow Damage 10 | . . 10 Projectiles . | . . . Explosions 10 | . . 10 Melee . | . . . Knockbacks . | . . . Impact . | . . . Kinetic . | . . . Secondary . | . . . Self-Inflicted Damage 16 | . . 16 Shots 1 | . . 1 Rammed . | . . . Targets Rammed . | . . . Kicked . | . . . Crushed . | . . . Highest Temperature 318 | . 170 318 Average Temperature 78 | . 72 81 Received Heat Transfer 528 | . 168 360 Effects 1 | . . 1 Interference 1 | . . 1 Siege Activations . | . . . Robots Corrupted . | . . . Combat Hostiles . | . . . Parts Fried . | . . . Impact Corruptions . | . . . Robots Melted . | . . . Combat Hostiles . | . . . Parts Melted 1 | . . 1 Heat Transferred 832 | . . 832 Parts Sabotaged . | . . . Parts Stolen . | . . . Parts Stripped . | . . . Power Chain Reactions 1 | . . 1 Missiles Intercepted . | . . . Alert | -11 -10 -10 ------- Run | Scr Mat Min Peak Influence 152 | . 135 152 Average Influence 74 | . 75 73 Maximum Alert Level . | . . . Low Security (%) 100 | 100 100 100 Level 1 . | . . . Level 2 . | . . . Level 3 . | . . . Level 4 . | . . . Level 5 . | . . . High Security . | . . . Max Security . | . . . Squads Dispatched 2 | . 2 . Investigation 1 | . 1 . Extermination . | . . . Reinforcement 1 | . 1 . Assault . | . . . Garrison . | . . . Intercept . | . . . Construction Impeded . | . . . Haulers Reinforced . | . . . Stealth | -11 -10 -10 --------- Run | Scr Mat Min Distress Signals . | . . . Communications Jammed . | . . . Distress Signals . | . . . Times Spotted 23 | . 7 16 Peak Tracking Total 3 | . 3 3 Tactical Retreats 1 | . . 1 Traps | -11 -10 -10 ------- Run | Scr Mat Min Traps Triggered 1 | . 1 . Indirectly . | . . . Trap Hack Attempts . | . . . Triggered . | . . . Disarmed . | . . . Reprogrammed . | . . . Reused . | . . . Traps Extracted . | . . . Installed . | . . . Triggered . | . . . Machines | -11 -10 -10 ---------- Run | Scr Mat Min Machines Disabled . | . . . Max in Single Turn . | . . . Machines Sabotaged . | . . . Garrisons Compromised . | . . . Overloaded Fab Kills . | . . . Fab Network Shutdowns . | . . . Hacking | -11 -10 -10 --------- Run | Scr Mat Min Machines Accessed 1 | . 1 . Terminals 1 | . 1 . Fabricators . | . . . Repair Stations . | . . . Recycling Units . | . . . Scanalyzers . | . . . Garrison Access . | . . . Total Hacks 5 | . 5 . Successful 3 | . 3 . Failed 2 | . 2 . Catastrophic . | . . . Database Lockouts . | . . . Manual 3 | . 3 . Terminals 5 | . 5 . Fabricators . | . . . Repair Stations . | . . . Recycling Units . | . . . Scanalyzers . | . . . Garrison Access . | . . . Terminal Hacks 2 | . 2 . Record 1 | . 1 . Dispatch Records 1 | . 1 . Fabricator Hacks . | . . . Repair Station Hacks . | . . . Recycling Unit Hacks . | . . . Scanalyzer . | . . . Garrison Access Hacks . | . . . Unauthorized Hacks 1 | . 1 . Terminals 1 | . 1 . Botnet 1 | . 1 . Fabricators . | . . . Repair Stations . | . . . Recycling Units . | . . . Scanalyzers . | . . . Garrison Access . | . . . Data Cores Recovered 1 | . 1 . Used 1 | . 1 . Hacking Detections 1 | . 1 . Full Trace Events 1 | . 1 . Feedback Events . | . . . Feedback Blocked . | . . . Robot Schematics Acquired . | . . . Robots Built . | . . . Matter . | . . . Time . | . . . Total Robot Build Rating . | . . . Part Schematics Acquired . | . . . Parts Built . | . . . Matter . | . . . Time . | . . . Total Part Build Rating . | . . . Parts Repaired . | . . . Time . | . . . Parts Recycled . | . . . Recycled Matter . | . . . Retrieved Matter . | . . . Retrieved Components . | . . . Parts Scanalyzed . | . . . Part Schematics Acquired . | . . . Parts Damaged . | . . . Bothacking | -11 -10 -10 ------------ Run | Scr Mat Min Used RIF Installer . | . . . Robots Hacked 1 | . 1 . Non-combat . | . . . Combat 1 | . 1 . Robot Hacks Applied 1 | . 1 . parse_system 1 | . 1 . Relay Couplers Released . | . . . Robots Rewired . | . . . Allies Hacked . | . . . Hacks Repelled . | . . . Allies | -11 -10 -10 -------- Run | Scr Mat Min Total Allies . | . . . Largest Group . | . . . Highest-Rated Group . | . . . Highest-Rated Ally . | . . . Total Orders . | . . . Ally Attacks . | . . . Total Damage . | . . . Kills . | . . . Allies Corrupted . | . . . Allies Melted . | . . . Intel | -11 -10 -10 ------- Run | Scr Mat Min Robot Analysis Total . | . . . Derelict Logs Recovered 1 | . . 1 Drone Launches . | . . . Drone Recoveries . | . . . Exploration | -11 -10 -10 ------------- Run | Scr Mat Min Turns Passed 1437 | 4 383 1050 Spaces Moved 538 | 4 219 315 Core . | . . . Treads . | . . . Legs 110 | 4 106 . Wheels 428 | . 113 315 Hover . | . . . Flight . | . . . Fastest Speed 90 | 120 100 90 Average Speed 103 | 120 109 99 Slowest Speed 120 | 120 120 100 Overloaded Moves . | . . . Propulsion Burnouts . | . . . Robots Hopped . | . . . Cave-ins Triggered . | . . . Exploration Rate (%) 32 | 3 34 59 Regions Visited 2 Branch Regions 1 Pre-discovered Areas 1 | . . 1 Known Exits Taken . | . . . Unknown Exits Taken 2 | 1 1 . Scrap Searched 1 | . . 1 Spaces Dug . | . . . Terrain Destroyed 6 | . . 6 Melee . | . . . Projectile . | . . . AOE 6 | . . 6 Actions | -11 -10 -10 --------- Run | Scr Mat Min Total 1273 | 3 311 959 Wait 609 | . 46 563 Move 536 | 3 218 315 Hop . | . . . Pick Up 7 | . 4 3 Fast Attach 12 | . 5 7 Attach 6 | . . 6 Detach 1 | . . 1 Swap 2 | . 1 1 Drop 11 | . 8 3 Fire 88 | . 28 60 Melee 1 | . 1 . Ram . | . . . Kick . | . . . Crush . | . . . Escape Stasis . | . . . Rewire . | . . . Trap . | . . . Miscellaneous . | . . . Route ------- -11/Scrapyard -10/Materials (discovered 2 exits: [*Mat] / [*Min]) -10/Mines (discovered 1 exit: [*Mat]) History --------- Turn | Location | Event 1 | -11/Scrapyard | Discovered new exit (range 2) 5 | -11/Scrapyard | Entered Materials 235 | -10/Materials | Discovered new exit (range 13) 304 | -10/Materials | Build established: Mutant 342 | -10/Materials | Discovered new exit (range 3) 388 | -10/Materials | Entered Mines 413 | -10/Mines | Met a Derelict bent on vengeance 506 | -10/Mines | Learned location of Zion (-6) 619 | -10/Mines | Excavation squad dispatched 619 | -10/Mines | A large section of the Mines collapsed 869 | -10/Mines | Excavation squad dispatched 1119 | -10/Mines | Excavation squad dispatched 1192 | -10/Mines | Core integrity fell below 50% 1211 | -10/Mines | Discovered new exit (range 10) 1322 | -10/Mines | Lost 5 parts (1p1n1u2w) 1374 | -10/Mines | Core integrity fell below 20% 1410 | -10/Mines | Lost 3 parts (1p1n1w) 1438 | -10/Mines | Destroyed by G-47 Trooper with Particle Gun Last Messages --------------- 01309_ Acquired 10 matter. 01309_ T-07 Excavator is excavating. 01325_ G-34 Mercenary destroyed. 01325_ T-07 Excavator destroyed. 01327_ 1L|>J4BT=TLJT/ZLFBFU S YO 01369_ Sml. Laser destroyed. 01377_ Lgt. Ion Engine destroyed. 01378_ G-34 Mercenary destroyed. 01378_ Switching to secondary target: G-47 Trooper. 01379_ Com. Wheel destroyed. 01391_ System corrupted: Component data lost. 01392_ G-47 Trooper destroyed. 01398_ Acquired 18 matter. 01401_ Acquired Lgt. Nuclear Core. 01407_ Acquired 20 matter. Map ----- +----------------------------------------------------+ | | | | | | | | | | | | | | | | | | | ?????????????????????????????? | | ?????????????????????????????? | | ?????????????????????????????? | | ?????????????????????????????? | | ?????????????????????????????? | | ?????????????????????????????? | | ?????????????????????????????? | | ?????????????????????????????? | | ?????????????????????????????? | | ?????????????????????????????? | | ?????????###?????????????????? | | ????????# ##????????????????? | | ????#### #????????????????? | | ????# ##???????????????? | | ????# #???????????????? | | ????#g## ???????## | | ????#@#??? ? ### | | ????# ####?? ?? | | ????# #???? ##? | | ????###% #?????? #??? | | ??????# ######??? #??? | | ??????# #??????????### | | ??????# #????????????# | | ??????# """ #?????????#### | | ??????# """ #????????## | | ??????# "" #????????# | | ??????# #????????# | | ??????# #?????????# | | ??????# % #?????????## | | ??????######%##??????????## | | ???????????#!#????????????## | | ???????????# #?????????????# | | ???????????# #?????????#???# | | ???????????# #??????? #???## | | ???????????# #??????? #????## | | ???????????# #???#### #?????# | | ???????????# #??## # ##????# | | ???????????#%#?## ##??## | | ???????????#!### """ #?## | | ???????????# !""" ### | | ???????????# =%""" ### | +----------------------------------------------------+ Best States ------------- Heat Dissipation 35 Energy Generation 14 Energy Capacity 250 Matter Stores 300 Matter Capacity 300 Sight Range 16 Terrain Scan Density 10 Evasion (%) 42 Offensive Hacking 10 Item Schematics ----------------- None Robot Schematics ------------------ None Fabricated ------------ Nothing Alien Tech Used ----------------- None Achievements -------------- None Challenges ------------ None Game ------ Seed HeatVisualAxe Manual? 0 Play Time 00:14:18 Cumulative 30.9 hours Start 2020.07.28 @ 11:21:28 End 2020.07.28 @ 22:44:43 Sessions 6 Manual Loads 0 Difficulty Rogue Special Mode None Game No. 74 Rogue 73 Adventurer 0 Explorer 1 Win Type - Total 0 Types 0/0/0/0/0/0/0 Lore% 23 Gallery% 39 Achievement% 27 Wizard Run 0 Options --------- ASCII 1 Keyboard 1 Movement Vi Keybinds 0 Fullscreen 2 Font 24/Proggy Map View 76x50 Tactical HUD 1 Map Filters NONE Filters NONE Steam 1 RUN: 67c3f473-77a4-49f5-8a83-eda001c1a7b7